bitfinex/quotes_SOLUSD_20240925
["timestamp","ask_amount","ask_price","bid_price","bid_amount"]
[1727305803239,6.9780626,148.75,148.68,34.03077621]
[1727305803449,0.2552626,148.75,148.68,29.41009753]
[1727305803624,0.2552626,148.75,148.71,6.7244]
[1727305803824,0.2552626,148.75,148.71,8.06908703]
[1727305804032,0.2552626,148.75,148.72,6.7239]
[1727305804347,0.2552626,148.75,148.7,16.8118]
[1727305804552,0.2552626,148.75,148.71,6.7244]
[1727305804553,20.2552626,148.75,148.71,6.7244]
[1727305805746,0.2552626,148.75,148.71,6.7244]
[1727305805948,7.36431645,148.75,148.7,23.5366]
[1727305806450,6.9782626,148.75,148.7,23.5366]
[1727305807616,6.9782626,148.75,148.71,1.34473919]
[1727305808245,6.9782626,148.75,148.7,23.5366]
[1727305808670,6.9782626,148.75,148.71,1.34473908]
[1727305808826,0.2552626,148.75,148.71,8.06903908]
[1727305809028,0.2552626,148.75,148.71,1.34473908]
[1727305809240,0.2552626,148.75,148.74,6.7231]
[1727305809547,0.2552626,148.75,148.73,1.34439741]
[1727305809751,0.2552626,148.75,148.73,6.7235]
[1727305809922,0.2552626,148.75,148.72,23.1997]
[1727305810838,0.2552626,148.75,148.74,6.7231]
[1727305811152,0.2552626,148.75,148.72,29.9233]
[1727305812345,0.2552626,148.75,148.72,23.1997]
[1727305812559,6.7231,148.74,148.7,6.7246]
[1727305812769,0.2552626,148.75,148.7,6.7248]
[1727305812770,6.9781626,148.75,148.7,6.7248]
[1727305813547,7.10945385,148.74,148.69,16.8131]
[1727305813756,6.7234,148.74,148.69,23.5383]
[1727305814134,6.7234,148.74,148.69,24.88313851]
[1727305814558,6.9779626,148.75,148.7,6.7248]
[1727305814765,6.9779626,148.75,148.71,1.3447114]
[1727305816337,6.9779626,148.75,148.71,8.0690114]
[1727305816571,6.9779626,148.75,148.72,1.3446663]
[1727305817369,6.9779626,148.75,148.71,6.7243]
[1727305818868,0.2552626,148.75,148.71,6.7243]
[1727305819055,0.2552626,148.75,148.72,6.7239]
[1727305819548,0.2552626,148.75,148.68,34.34741132]
[1727305819878,0.2552626,148.75,148.71,16.8103]
[1727305820169,0.2552626,148.75,148.73,6.7234]
[1727305820874,0.2552626,148.75,148.72,6.7239]
[1727305821242,0.2552626,148.75,148.71,16.8103]
[1727305821462,0.2552626,148.75,148.72,6.7239]
[1727305822254,0.2552626,148.75,148.72,8.06849415]
[1727305823265,0.2552626,148.75,148.72,6.7239]
[1727305823766,0.2552626,148.75,148.71,16.8103]
[1727305824065,0.2552626,148.75,148.73,6.7233]
[1727305826567,0.2552626,148.75,148.74,8.06759566]
[1727305827271,6.7233,148.74,148.7,6.7248]
[1727305827490,6.9780626,148.75,148.7,6.7248]
[1727305827693,0.38605385,148.74,148.7,6.7248]
[1727305827981,6.7236,148.73,148.69,6.7252]
[1727305828287,0.38605385,148.72,148.69,6.7252]
[1727305828496,0.2552626,148.75,148.69,8.07010906]
[1727305828700,6.7232,148.74,148.69,8.07010906]
[1727305829362,6.7232,148.74,148.7,6.7247]
[1727305829559,6.7232,148.74,148.71,1.34474625]
[1727305829879,20.2552626,148.75,148.71,1.34474625]
[1727305830185,20.2552626,148.75,148.7,16.8118]
[1727305830382,20.2552626,148.75,148.72,6.7239]
[1727305830682,0.2552626,148.75,148.73,8.06801914]
[1727305831081,0.2552626,148.75,148.74,6.7231]
[1727305832999,0.2552626,148.75,148.74,6.97408]
[1727305833297,0.2552626,148.75,148.74,34.70500132]
[1727305834576,0.2552626,148.75,148.74,22.51198]
[1727305842101,0.2552626,148.75,148.74,6.7231]
[1727305843407,0.2552626,148.75,148.74,6.97408]
[1727305843708,0.2552626,148.75,148.74,6.7231]
[1727305845680,0.2552626,148.75,148.74,6.97408]
[1727305847303,0.2552626,148.75,148.74,19.16710132]
[1727305847613,0.2379705,148.84,148.81,16.7994]
[1727305847905,0.5103398,148.84,148.81,16.7994]
[1727305848109,6.7191,148.83,148.78,6.97218]
[1727305848316,6.7191,148.83,148.78,6.7212]
[1727305848491,0.5103398,148.84,148.79,1.34398329]
[1727305848678,7.2289398,148.84,148.79,6.7208]
[1727305850412,0.5103398,148.84,148.78,0.25098]
[1727305850590,0.5103398,148.84,148.8,8.06432002]
[1727305850907,0.5103398,148.84,148.8,6.7204]
[1727305853211,7.2289398,148.84,148.8,6.7204]
[1727305853604,7.2289398,148.84,148.78,0.25098]
[1727305853799,7.2289398,148.84,148.79,6.7208]
[1727305853800,6.7186,148.84,148.79,6.7208]
[1727305853998,20.0,148.85,148.82,6.7194]
[1727305854195,20.0,148.86,148.82,6.7194]
[1727305854392,20.0,148.86,148.83,6.7188]
[1727305855207,20.0,148.87,148.81,28.99182132]
[1727305855415,20.0,148.88,148.84,6.7185]
[1727305855586,20.0,148.88,148.83,16.797]
[1727305855785,20.0,148.88,148.81,0.12549]
[1727305855786,6.7177,148.86,148.81,0.12549]
[1727305856000,20.0,148.88,148.81,6.7199]
[1727305856327,6.7183,148.85,148.81,6.7199]
[1727305856516,6.7177,148.87,148.82,1.34372313]
[1727305856715,6.7178,148.86,148.82,1.34372313]
[1727305858124,20.0,148.88,148.8,23.5208]
[1727305858125,6.7185,148.85,148.8,23.5208]
[1727305858292,6.68839,148.85,148.8,23.5208]
[1727305858492,6.68839,148.85,148.81,1.34379019]
[1727305858724,20.0,148.88,148.81,13.53681151]
[1727305858929,6.7176,148.87,148.82,6.7194]
[1727305860623,6.7176,148.87,148.83,1.34365022]
[1727305861200,6.7185,148.85,148.8,23.64599]
[1727305861416,20.0,148.88,148.8,16.92599]
[1727305861620,6.7178,148.86,148.81,8.06360877]
[1727305862328,26.7172,148.88,148.82,0.12549]
[1727305862489,26.7172,148.88,148.83,8.06256938]
[1727305863320,20.0,148.88,148.83,6.719]
[1727305863532,6.7173,148.87,148.83,8.06256986]
[1727305865925,6.7173,148.87,148.8,0.12549]
[1727305865926,6.7184,148.85,148.8,6.7203]
[1727305866225,6.7184,148.85,148.81,6.7198]
[1727305866402,23.776884,148.87,148.8,6.7202]
[1727305866601,6.7182,148.85,148.8,6.7202]
[1727305866915,23.776884,148.87,148.77,16.0771]
[1727305866916,20.0,148.82,148.77,16.0771]
[1727305867222,6.7214,148.78,148.73,6.7234]
[1727305867427,20.0,148.8,148.73,16.8086]
[1727305867428,6.7218,148.77,148.73,16.8086]
[1727305867610,20.0,148.8,148.72,29.7004]
[1727305867611,0.38605385,148.79,148.72,29.7004]
[1727305867800,20.0,148.8,148.72,23.1716]
[1727305868002,6.7218,148.77,148.72,23.1716]
[1727305868208,6.7218,148.77,148.72,16.4476]
[1727305868403,6.7214,148.78,148.73,6.7235]
[1727305869107,6.7208,148.79,148.74,6.7227]
[1727305869518,0.38605385,148.78,148.72,33.2568]
[1727305870298,6.7227,148.75,148.7,6.7249]
[1727305870507,7.10925385,148.74,148.69,23.88246]
[1727305870824,6.7232,148.74,148.69,23.88246]
[1727305873131,6.7245,148.71,148.69,0.34396]
[1727305873309,43.776884,148.75,148.69,0.34396]
[1727305873508,6.724,148.72,148.69,0.34396]
[1727305875438,6.7231,148.74,148.69,7.06886]
[1727305875626,20.0,148.73,148.7,1.34480557]
[1727305876144,20.0,148.73,148.69,7.06886]
[1727305876340,6.7236,148.73,148.69,0.34396]
[1727305877534,26.7232,148.74,148.69,8.41391584]
[1727305877846,26.7232,148.74,148.69,7.06906]
[1727305878145,27.10925385,148.74,148.69,7.06906]
[1727305878317,26.7232,148.74,148.69,7.06906]
[1727305878520,26.7232,148.74,148.69,8.41390875]
[1727305878738,26.7232,148.74,148.69,0.34396]
[1727305878920,26.7232,148.74,148.69,7.06926]
[1727305880647,6.7236,148.73,148.69,7.06926]
[1727305880832,6.7236,148.73,148.69,0.34396]
[1727305881041,7.11015385,148.72,148.69,0.34396]
[1727305881340,6.7246,148.71,148.69,0.34396]
[1727305882114,26.724,148.73,148.69,0.34396]
[1727305882344,6.724,148.72,148.69,0.34396]
[1727305883155,26.7236,148.73,148.69,0.34396]
[1727305883522,20.0,148.73,148.69,0.34396]
[1727305883846,26.7231,148.75,148.7,6.7248]
[1727305884722,6.7233,148.74,148.69,23.88196]
[1727305886748,7.10965385,148.73,148.69,23.88196]
[1727305887132,20.0,148.76,148.7,8.0695104]
[1727305887324,20.0,148.74,148.7,6.7247]
[1727305888437,20.0,148.74,148.71,6.7244]
[1727305888857,20.0,148.74,148.7,6.7248]
[1727305891061,6.7231,148.74,148.7,6.7248]
[1727305891275,7.10975385,148.73,148.69,17.15676]
[1727305891559,6.7237,148.73,148.69,17.15676]
[1727305891756,6.7237,148.73,148.69,23.88206]
[1727305895341,6.7227,148.75,148.7,8.06933124]
[1727305900246,6.7227,148.75,148.7,1.34483124]
[1727305900445,6.7227,148.75,148.71,6.7244]
[1727305900666,6.7227,148.75,148.72,1.34465953]
[1727305901170,6.7227,148.75,148.71,8.06906184]
[1727305902346,6.7227,148.75,148.71,6.7244]
[1727305903566,36.8039,148.78,148.72,1.34466158]
[1727305903771,6.7213,148.78,148.74,6.7231]
[1727305903955,6.721,148.79,148.75,1.34438657]
[1727305904148,15.1285,148.83,148.75,8.06668657]
[1727305904149,6.7207,148.8,148.75,8.06668657]
[1727305904352,6.721,148.79,148.75,16.2247]
[1727305904579,15.1285,148.83,148.75,24.29160059]
[1727305904754,13.27360515,148.84,148.76,0.25098]
[1727305904951,6.7199,148.82,148.77,8.06569049]
[1727305906447,6.7191,148.83,148.78,6.7212]
[1727305906650,6.7191,148.83,148.79,1.34397346]
[1727305909159,6.7191,148.83,148.78,6.7212]
[1727305909352,32.7014,148.87,148.77,16.8036]
[1727305909353,6.72,148.81,148.77,16.8036]
[1727305909753,6.7196,148.82,148.78,1.3440822]
[1727305910652,23.776884,148.86,148.78,1.3440822]
[1727305910855,6.72,148.81,148.76,6.97308]
[1727305911075,6.7205,148.8,148.75,29.2723]
[1727305911451,6.7205,148.8,148.76,6.7221]
[1727305911781,6.7205,148.8,148.75,29.2723]
[1727305913377,6.7209,148.79,148.75,29.2723]
[1727305914087,7.10745385,148.78,148.75,16.2247]
[1727305914262,6.7214,148.78,148.75,16.2247]
[1727305917179,16.7983,148.83,148.75,16.2247]
[1727305917490,6.7208,148.8,148.76,1.34430674]
[1727305917685,6.7209,148.79,148.75,16.2247]
[1727305920089,6.7209,148.79,148.75,17.5690112]
[1727305920708,23.82553091,148.83,148.75,17.5690112]
[1727305920879,6.72,148.81,148.77,6.7216]
[1727305921074,6.72,148.81,148.77,8.06573662]
[1727305921276,20.0,148.83,148.77,8.06573662]
[1727305921474,6.7195,148.82,148.77,8.06573662]
[1727305921685,6.7195,148.82,148.78,6.7212]
[1727305921903,6.7186,148.84,148.79,8.06483135]
[1727305922901,6.7186,148.84,148.8,1.34394044]
[1727305924074,6.7186,148.84,148.8,6.7203]
[1727305925006,6.7186,148.84,148.79,6.7207]
[1727305925191,6.7186,148.84,148.8,1.34390565]
[1727305929498,6.7201,148.81,148.77,29.7528]
[1727305929700,6.7196,148.82,148.77,29.7528]
[1727305930215,6.7191,148.83,148.78,6.7213]
[1727305931296,0.38605385,148.82,148.77,6.2276]
[1727305931494,0.38605385,148.82,148.75,16.2247]
[1727305931495,6.7207,148.8,148.75,22.947]
[1727305933198,23.776884,148.82,148.75,22.947]
[1727305933417,6.7208,148.79,148.75,22.947]
[1727305934322,6.7205,148.8,148.75,22.947]
[1727305937423,24.16293785,148.82,148.75,22.947]
[1727305937626,6.7209,148.79,148.75,22.947]
[1727305938117,0.38605385,148.78,148.75,16.2247]
[1727305938326,6.7209,148.79,148.75,16.2247]
[1727305938633,6.7209,148.79,148.75,17.56902482]
[1727305939324,6.7213,148.78,148.75,16.2247]
[1727305939724,36.7984,148.83,148.75,16.2247]
[1727305939928,6.7209,148.79,148.75,22.9473]
[1727305945305,6.7209,148.79,148.75,16.2247]
[1727305946345,6.7221,148.77,148.75,16.2247]
[1727305946509,0.38605385,148.76,148.74,0.1703057]
[1727305946711,24.16293785,148.79,148.74,0.1703057]
[1727305947512,6.7222,148.76,148.74,0.1703057]
[1727305947723,7.10865385,148.75,148.74,0.1703057]
[1727305948035,6.7226,148.75,148.74,0.1703057]
[1727305949731,6.7223,148.76,148.74,0.1703057]
[1727305951429,6.7226,148.75,148.74,0.1703057]
[1727305952732,6.7248,148.71,148.69,0.2433713]
[1727305953139,20.0,148.74,148.69,0.2433713]
[1727305953328,6.7236,148.73,148.69,0.2433713]
[1727305953757,6.7241,148.72,148.69,0.2433713]
[1727305954257,20.0,148.75,148.69,0.2433713]
[1727305954444,6.7234,148.74,148.69,8.31326442]
[1727305954643,6.7227,148.75,148.7,6.7248]
[1727305954860,6.7227,148.75,148.71,6.7244]
[1727305955371,6.7227,148.75,148.72,1.34477068]
[1727305955832,6.7227,148.75,148.71,8.06906892]
[1727305956760,6.7227,148.75,148.72,1.34468111]
[1727305957564,6.7227,148.75,148.71,8.06907014]
[1727305958563,6.7227,148.75,148.71,6.7244]
[1727305958772,6.7228,148.75,148.7,6.7248]
[1727305958974,20.0,148.78,148.71,17.06138]
[1727305959139,26.7214,148.78,148.73,6.7235]
[1727305959339,26.7214,148.78,148.74,1.34442746]
[1727305959561,26.7214,148.78,148.73,6.7235]
[1727305959738,26.7214,148.78,148.74,1.34443216]
[1727305960164,0.38605385,148.77,148.71,33.37398]
[1727305960344,6.7222,148.76,148.71,40.09808]
[1727305960539,6.7222,148.76,148.71,39.8471]
[1727305960744,7.10875385,148.75,148.71,39.8471]
[1727305960943,6.7227,148.75,148.71,39.8471]
[1727305962062,6.7223,148.76,148.71,39.8471]
[1727305963443,6.7227,148.75,148.71,39.8471]
[1727305963644,24.16293785,148.77,148.71,33.123]
[1727305963839,20.0,148.76,148.71,16.3126]
[1727305964047,6.7239,148.73,148.71,16.3126]
[1727305964375,6.7232,148.74,148.71,16.3126]
[1727305964541,20.0,148.76,148.71,16.3126]
[1727305964744,23.776884,148.77,148.71,16.3126]
[1727305964745,6.7236,148.73,148.71,16.3126]
[1727305965084,0.38605385,148.72,148.69,0.2433713]
[1727305965374,6.7243,148.72,148.69,0.2433713]
[1727305966850,7.11055385,148.71,148.69,0.2433713]
[1727305967255,6.7245,148.71,148.69,0.2433713]
[1727305968576,6.7249,148.7,148.69,0.2433713]
[1727305973272,30.501784,148.7,148.69,0.2433713]
[1727305973471,50.501784,148.7,148.69,0.2433713]
[1727305975980,26.7249,148.7,148.69,0.2433713]
[1727305977160,50.501784,148.7,148.69,0.2433713]
[1727305980777,50.88783785,148.7,148.69,0.2433713]
[1727305981079,50.88783785,148.7,148.65,0.2433713]
[1727305981080,26.7267,148.66,148.65,0.2433713]
[1727305982387,6.7264,148.67,148.65,0.2433713]
[1727305982805,7.11275385,148.66,148.65,0.2433713]
[1727305983299,6.7267,148.66,148.65,0.2433713]
[1727305984910,26.7267,148.66,148.65,0.2433713]
[1727305993411,50.503584,148.66,148.65,0.2433713]
[1727305995599,50.629074,148.66,148.65,0.2433713]
[1727305995982,50.503584,148.66,148.65,0.2433713]
[1727306000847,50.503584,148.66,148.6,0.2433713]
[1727306000848,44.027864,148.66,148.6,0.2433713]
[1727306001021,6.7286,148.62,148.6,0.2433713]
[1727306001213,27.11545385,148.61,148.58,0.1714593]
[1727306001418,26.7299,148.59,148.58,0.1714593]
[1727306002222,6.7308,148.57,148.56,0.2433713]
[1727306002431,26.7308,148.57,148.56,0.2433713]
[1727306002938,26.7308,148.57,148.51,0.2433713]
[1727306002939,6.7318,148.55,148.51,0.2433713]
[1727306003115,0.38605385,148.54,148.51,0.2433713]
[1727306003737,6.7322,148.54,148.51,0.2433713]
[1727306004019,6.7322,148.54,148.5,16.8344]
[1727306004020,6.7317,148.55,148.5,21.3116713]
[1727306004346,6.7317,148.55,148.49,22.6920593]
[1727306004347,6.7327,148.53,148.49,22.6920593]
[1727306004517,26.7321,148.54,148.49,29.4264593]
[1727306005540,93.4745937,148.6,148.5,1.34670911]
[1727306005541,20.0,148.56,148.5,1.34670911]
[1727306005750,26.7313,148.56,148.51,6.7334]
[1727306005917,23.776884,148.54,148.49,39.5273593]
[1727306006118,24.16293785,148.55,148.49,39.5273593]
[1727306006317,23.776884,148.55,148.49,39.5273593]
[1727306006623,6.7325,148.54,148.49,39.5273593]
[1727306007349,6.7325,148.54,148.49,46.2617593]
[1727306008150,6.7325,148.54,148.5,6.734]
[1727306008626,20.0,148.59,148.5,6.734]
[1727306008829,6.7318,148.55,148.51,6.7335]
[1727306009552,7.11825385,148.54,148.49,39.5273593]
[1727306009759,6.7322,148.54,148.49,39.5273593]
[1727306010531,20.0,148.59,148.49,39.5273593]
[1727306010754,6.7318,148.55,148.5,6.7336]
[1727306010947,7.11825385,148.54,148.5,6.7336]
[1727306011248,20.0,148.59,148.49,39.5273593]
[1727306011249,6.7332,148.52,148.49,0.1714593]
[1727306012747,0.38605385,148.51,148.49,0.1714593]
[1727306013125,7.02925305,148.56,148.49,0.1714593]
[1727306013350,20.38605385,148.55,148.49,0.1714593]
[1727306013544,6.7326,148.54,148.49,6.9058593]
[1727306013744,0.38605385,148.53,148.49,6.9058593]
[1727306013946,6.7326,148.54,148.49,6.9058593]
[1727306014255,0.38605385,148.53,148.49,6.9058593]
[1727306014459,7.11875385,148.53,148.49,0.1714593]
[1727306015237,0.38605385,148.52,148.49,0.1714593]
[1727306016157,7.11915385,148.52,148.49,0.1714593]
[1727306016332,0.38605385,148.51,148.49,0.1714593]
[1727306017764,7.11955385,148.51,148.49,0.1714593]
[1727306018054,6.7335,148.51,148.49,0.1714593]
[1727306019263,0.38605385,148.5,148.49,0.1714593]
[1727306019566,6.7335,148.51,148.49,0.1714593]
[1727306019732,6.7332,148.52,148.49,0.1714593]
[1727306019933,20.0,148.53,148.49,6.9054593]
[1727306020363,27.11875385,148.53,148.49,6.9054593]
[1727306021560,0.38605385,148.52,148.49,6.9054593]
[1727306023768,26.7327,148.53,148.49,6.9054593]
[1727306023951,0.38605385,148.52,148.49,6.9054593]
[1727306024143,26.7327,148.53,148.49,6.9054593]
[1727306024346,6.7322,148.54,148.5,6.7339]
[1727306024547,20.0,148.53,148.5,6.7339]
[1727306025567,13.76065305,148.56,148.51,8.07990001]
[1727306025951,6.7314,148.56,148.51,6.7332]
[1727306026155,7.11785385,148.55,148.51,6.7332]
[1727306026366,0.38605385,148.54,148.51,6.7332]
[1727306026678,6.7318,148.55,148.51,8.07975329]
[1727306026876,23.776884,148.58,148.52,6.7329]
[1727306027055,20.0,148.56,148.52,6.7329]
[1727306027984,6.7313,148.56,148.52,6.7329]
[1727306028672,0.38605385,148.55,148.52,6.7329]
[1727306028979,7.11785385,148.55,148.51,16.8335]
[1727306029287,20.0,148.57,148.52,1.34659449]
[1727306029446,26.7309,148.57,148.52,6.7329]
[1727306029778,27.11695385,148.57,148.52,6.7329]
[1727306031077,6.7312,148.56,148.52,6.7329]
[1727306032068,20.38605385,148.57,148.52,6.7329]
[1727306032274,27.11695385,148.57,148.52,6.7329]
[1727306032967,26.7309,148.57,148.52,6.7329]
[1727306034489,0.38605385,148.56,148.52,6.7329]
[1727306035466,7.11735385,148.56,148.52,6.7329]
[1727306035666,6.7317,148.55,148.51,16.8335]
[1727306035869,0.38605385,148.54,148.51,16.8335]
[1727306036985,0.38605385,148.54,148.5,22.5393]
[1727306036986,0.38605385,148.54,148.5,15.8057]
[1727306037188,24.16293785,148.56,148.5,15.8057]
[1727306037356,20.0,148.55,148.5,15.8057]
[1727306037716,0.38605385,148.54,148.5,15.8057]
[1727306037982,0.38605385,148.54,148.49,0.1714593]
[1727306038379,6.7339,148.51,148.49,0.1714593]
[1727306038967,6.7332,148.52,148.49,0.1714593]
[1727306040787,0.38605385,148.51,148.49,0.1714593]
[1727306041985,6.7332,148.52,148.49,0.1714593]
[1727306043469,6.7322,148.54,148.5,6.7339]
[1727306043678,20.0,148.53,148.5,6.7339]
[1727306044090,7.02961069,148.58,148.51,18.17979906]
[1727306044394,6.7309,148.57,148.52,6.7327]
[1727306044770,15.5698543,148.6,148.52,6.7327]
[1727306044970,6.7314,148.56,148.52,6.7327]
[1727306046387,6.7314,148.56,148.52,8.07915488]
[1727306046778,23.776884,148.59,148.52,1.34645488]
[1727306046979,26.7305,148.58,148.53,23.5636]
[1727306047194,6.7309,148.57,148.53,23.5636]
[1727306047395,7.11745385,148.56,148.52,6.733]
[1727306047685,6.7308,148.57,148.53,6.7325]
[1727306048196,6.7308,148.57,148.52,6.733]
[1727306049100,20.0,148.57,148.54,6.7321]
[1727306051884,20.0,148.57,148.52,16.832]
[1727306051885,6.7304,148.58,148.53,6.7325]
[1727306052587,6.7308,148.57,148.53,6.7325]
[1727306056975,6.7304,148.58,148.53,6.7325]
[1727306057404,0.38605385,148.57,148.53,6.7325]
[1727306058303,6.7304,148.58,148.53,6.7325]
[1727306064415,7.11715385,148.57,148.53,6.7325]
[1727306064597,7.11735385,148.56,148.52,23.5649]
[1727306064908,6.7313,148.56,148.52,23.5649]
[1727306066706,6.7309,148.57,148.52,23.5649]
[1727306067400,6.7309,148.57,148.52,16.832]
[1727306067732,6.7309,148.57,148.53,6.7326]
[1727306068513,6.7309,148.57,148.53,8.07892284]
[1727306068683,6.7305,148.58,148.53,8.07892284]
[1727306072511,6.7305,148.58,148.53,6.7326]
[1727306073012,20.0571606,148.59,148.53,6.7326]
[1727306073222,6.7309,148.57,148.53,6.7326]
[1727306073515,0.38605385,148.56,148.53,6.7326]
[1727306073722,0.38605385,148.56,148.51,15.6909]
[1727306074018,6.7318,148.55,148.51,15.6909]
[1727306074512,6.7314,148.56,148.51,17.03747571]
[1727306074728,6.7314,148.56,148.52,6.733]
[1727306076200,6.7314,148.56,148.53,1.34640851]
[1727306076601,6.7309,148.57,148.53,8.07880851]
[1727306077304,6.7309,148.57,148.53,6.7324]
[1727306078413,6.7313,148.56,148.51,32.5243]
[1727306078625,6.7313,148.56,148.52,6.733]
[1727306081211,7.11785385,148.55,148.51,39.2574]
[1727306081413,6.7318,148.55,148.51,39.2574]
[1727306083709,6.7313,148.56,148.51,39.2574]
[1727306085627,6.7313,148.56,148.52,6.7329]
[1727306086813,6.7304,148.58,148.53,1.34642412]
[1727306087328,6.7304,148.58,148.53,8.07892412]
[1727306087830,6.7304,148.58,148.53,6.7325]
[1727306090336,6.7870606,148.59,148.55,6.7315]
[1727306090510,20.0571606,148.59,148.51,15.6909]
[1727306090704,6.7316,148.56,148.51,22.4241]
[1727306091023,6.7316,148.56,148.52,6.733]
[1727306091329,0.38605385,148.55,148.51,15.6909]
[1727306091509,0.38605385,148.57,148.51,15.6909]
[1727306092428,6.7322,148.54,148.51,15.6909]
[1727306092608,6.7318,148.55,148.51,15.6909]
[1727306095234,6.7318,148.55,148.51,22.4243]
[1727306101729,6.7314,148.56,148.51,22.4243]
[1727306101935,6.7314,148.56,148.52,6.733]
[1727306102632,7.11785385,148.55,148.51,15.6909]
[1727306102855,5.7318,148.55,148.51,15.6909]
[1727306103010,6.7309,148.57,148.53,6.7325]
[1727306103216,0.38605385,148.56,148.52,16.8323]
[1727306103438,6.7312,148.56,148.52,23.5653]
[1727306104224,0.38605385,148.55,148.52,23.5653]
[1727306104742,6.7322,148.54,148.51,15.6909]
[1727306105437,24.16293785,148.58,148.51,15.6909]
[1727306105742,6.7314,148.56,148.51,22.424]
[1727306107525,0.38605385,148.55,148.51,22.424]
[1727306108348,6.7327,148.53,148.49,23.5699]
[1727306109322,6.7323,148.54,148.5,6.7338]
[1727306110264,20.0,148.57,148.51,18.18004373]
[1727306110442,6.7308,148.57,148.52,6.733]
[1727306112040,0.38605385,148.56,148.51,23.567]
[1727306112640,0.38605385,148.56,148.51,16.8335]
[1727306113527,6.7323,148.54,148.51,16.8335]
[1727306113724,0.38605385,148.53,148.5,6.7339]
[1727306113939,0.38605385,148.53,148.48,50.8667349]
[1727306114153,0.38605385,148.53,148.49,6.7343]
[1727306114855,6.7323,148.54,148.5,6.7339]
[1727306117142,0.38605385,148.53,148.5,6.7339]
[1727306117739,0.38605385,148.53,148.48,23.9273349]
[1727306117939,6.7332,148.52,148.48,23.9273349]
[1727306118151,36.8273,148.57,148.48,0.3561349]
[1727306118152,0.38605385,148.51,148.48,0.3561349]
[1727306118340,6.7338,148.51,148.48,0.3561349]
[1727306118659,0.38605385,148.5,148.48,0.3561349]
[1727306119036,6.7338,148.51,148.48,0.3561349]
[1727306120662,23.776884,148.53,148.48,0.3561349]
[1727306120847,6.734,148.5,148.48,0.3561349]
[1727306127965,26.7327,148.53,148.49,6.7343]
[1727306128143,13.75354919,148.54,148.5,6.734]
[1727306128340,6.7322,148.54,148.5,6.734]
[1727306128769,45.51321626,148.58,148.51,1.3466648]
[1727306128770,22.42511626,148.58,148.51,1.3466648]
[1727306129074,6.7304,148.58,148.53,6.7324]
[1727306129379,6.7871606,148.59,148.54,6.7321]
[1727306129674,6.2871606,148.59,148.54,6.7321]
[1727306130943,7.019613,148.61,148.53,16.8309]
[1727306131257,6.7299,148.59,148.55,6.7317]
[1727306132079,6.7299,148.59,148.54,6.7321]
[1727306132971,20.0,148.6,148.55,23.5602]
[1727306132972,6.7295,148.6,148.55,23.5602]
[1727306134067,7.019613,148.61,148.56,1.346074]
[1727306134249,7.019613,148.61,148.57,6.7307]
[1727306134456,6.9699362,148.63,148.58,8.07612846]
[1727306135176,0.2418362,148.63,148.57,16.8263]
[1727306135353,7.11455385,148.62,148.57,23.557]
[1727306136472,6.7285,148.62,148.57,23.557]
[1727306136650,6.7298,148.6,148.55,6.7316]
[1727306137360,0.38605385,148.59,148.54,33.2764]
[1727306137553,6.7308,148.57,148.54,33.2764]
[1727306139055,6.73,148.59,148.54,41.3544105]
[1727306139255,6.7295,148.6,148.55,6.7313]
[1727306139463,6.7295,148.6,148.56,1.34609965]
[1727306140282,6.7295,148.6,148.55,6.7313]
[1727306140774,6.7295,148.6,148.56,1.34609952]
[1727306141757,6.7295,148.6,148.55,6.7313]
[1727306142971,0.38605385,148.59,148.54,33.2764]
[1727306143168,43.776884,148.62,148.55,1.34625166]
[1727306143368,6.73,148.59,148.55,1.34625166]
[1727306143879,6.73,148.59,148.55,6.7317]
[1727306145184,0.38605385,148.58,148.54,40.0085]
[1727306145377,7.11645385,148.58,148.54,40.0085]
[1727306145579,6.7304,148.58,148.54,33.2764]
[1727306145778,0.38605385,148.57,148.54,16.4466]
[1727306146076,6.7309,148.57,148.54,16.4466]